[Event "17th Memorial Lezcano Montalvo 2025"]
[Site "Gran Canaria"]
[Date "2025.04.15"]
[Round "4.32"]
[White "Delgado Armas, Francisco David"]
[Black "Sukhodolskyi, Oleksii"]
[Result "0-1"]
[Annotator "RC"]
[ECO "C47"]
[WhiteElo "1608"]
[BlackElo "2070"]
[PlyCount "78"]
[EventDate "2025.04.13"]
[EventType "swiss"]
[EventCountry "ESP"]
[SourceTitle "playchess.com"]
[Source "ChessBase"]
[SourceQuality "1"]
[TimeControl "5400+30"]

1. e4 {[%emt 0:03:17]} e5 {[%emt 0:00:10]} 2. Nf3 {[%emt 0:00:14]} Nf6 {[%emt 0:00:35]} 3. Nc3 {[%emt 0:01:18]} Nc6 {[%emt 0:00:15]} 4. d4 {[%emt 0:00:09]} exd4 {[%emt 0:00:12]} 5. Nxd4 {[%emt 0:00:07]} Bb4 {[%emt 0:00:07]} 6. Bg5 {[%emt 0:03:35]} Qe7 {[%emt 0:09:58]} 7. f3 {[%emt 0:02:01]} Qc5 {[%emt 0:04:57]} 8. Bxf6 {[%emt 0:02:37]} Bxc3+ {[%emt 0:04:31]} 9. bxc3 {[%emt 0:03:03]} Qxc3+ {[%emt 0:00:07]} 10. Kf2 {[%emt 0:01:23]} gxf6 {[%emt 0:00:10]} 11. Nf5 {[%emt 0:04:07]} Qc5+ {[%emt 0:01:30]} 12. Ne3 {[%emt 0:01:00]} d6 {[%emt 0:02:52]} 13. Bd3 {[%emt 0:05:14]} Ne5 {[%emt 0:13:02]} 14. Re1 {[%emt 0:04:38]} Rg8 {[%emt 0:04:28]} 15. Rb1 {[%emt 0:04:33]} c6 {[%emt 0:01:55]} 16. h3 {[%emt 0:08:10]} Ng6 {[%emt 0:10:19]} 17. Kf1 {[%emt 0:07:15]} Nf4 {[%emt 0:01:44]} 18. Qd2 {[%emt 0:04:10]} Qg5 {[%emt 0:10:42]} 19. Ng4 {[%emt 0:09:47]} h5 {[%emt 0:10:10]} 20. h4 {[%emt 0:05:00]} Qxh4 {[%emt 0:01:02]} 21. Qxf4 {[%emt 0:00:26]} hxg4 {[%emt 0:00:23]} 22. Qxd6 {[%emt 0:05:28]} gxf3 {[%emt 0:02:42]} 23. gxf3 {[%emt 0:04:20]} Qh3+ {[%emt 0:03:13]} 24. Ke2 {[%emt 0:02:43]} Qe6 {[%emt 0:00:53]} 25. Qc7 {[%emt 0:04:24]} Qe5 {[%emt 0:01:21]} 26. Rxb7 {[%emt 0:06:27]} Bxb7 {[%emt 0:02:13]} 27. Qxb7 {[%emt 0:00:06]} Rg2+ {[%emt 0:02:17]} 28. Kf1 {[%emt 0:01:19]} Qh2 {[%emt 0:02:37]} 29. Qxa8+ {[%emt 0:02:03]} Ke7 {[%emt 0:00:08]} 30. Qb7+ {[%emt 0:02:09]} Kf8 {[%emt 0:00:14]} 31. Qb8+ {[%emt 0:00:10]} Qxb8 {[%emt 0:00:07]} 32. Kxg2 {[%emt 0:00:05]} Qb2 {[%emt 0:00:32]} 33. a4 {[%emt 0:02:05]} c5 {[%emt 0:01:18]} 34. Re2 {[%emt 0:00:33]} Qc3 {[%emt 0:01:57]} 35. Kg3 {[%emt 0:01:07]} c4 {[%emt 0:00:07]} 36. Re3 {[%emt 0:02:41]} cxd3 {[%emt 0:00:08]} 37. cxd3 {[%emt 0:00:01]} Qd4 {[%emt 0:00:12]} 38. Kf4 {[%emt 0:00:19]} Qe5+ {[%emt 0:00:09]} 39. Kg4 {[%emt 0:00:21]} Qg5+ {[%emt 0:00:09]} 0-1

[Event "17th Memorial Lezcano Montalvo 2025"]
[Site "Gran Canaria"]
[Date "2025.04.15"]
[Round "4.33"]
[White "Sosa Suarez, Carla Cristina"]
[Black "Fernandez Hernandez, Javier"]
[Result "1-0"]
[Annotator "NA RC"]
[ECO "B18"]
[WhiteElo "2056"]
[BlackElo "1689"]
[PlyCount "81"]
[EventDate "2025.04.13"]
[EventType "swiss"]
[EventCountry "ESP"]
[SourceTitle "playchess.com"]
[Source "ChessBase"]
[SourceQuality "1"]
[TimeControl "5400+30"]

1. e4 {[%emt 0:00:02]} c6 {[%emt 0:00:49]} 2. d4 {[%emt 0:00:04]} d5 {[%emt 0:00:06]} 3. Nc3 {[%emt 0:00:05]} dxe4 {[%emt 0:00:08]} 4. Nxe4 {[%emt 0:00:03]} Bf5 {[%emt 0:00:09]} 5. Ng3 {[%emt 0:00:05]} Bg6 {[%emt 0:00:07]} 6. h4 {[%emt 0:00:03]} h5 {[%emt 0:00:29]} 7. Nf3 {[%emt 0:00:08]} Nd7 {[%emt 0:00:05]} 8. Bd3 {[%emt 0:01:12]} Bxd3 {[%emt 0:00:06]} 9. Qxd3 {[%emt 0:00:04]} Ngf6 {[%emt 0:00:13]} 10. Bd2 {[%emt 0:00:43]} Qc7 {[%emt 0:01:50]} 11. O-O-O {[%emt 0:05:16]} O-O-O {[%emt 0:02:39]} 12. Ng5 {[%emt 0:02:20]} e6 {[%emt 0:00:39]} 13. Qe2 {[%emt 0:10:27]} Nb6 {[%emt 0:00:31]} 14. Ba5 {[%emt 0:08:09]} Rd5 {[%emt 0:06:40]} 15. Be1 {[%emt 0:07:56]} Bd6 {[%emt 0:10:40]} 16. c4 {[%emt 0:06:12]} Bf4+ {[%emt 0:01:44]} 17. Kb1 {[%emt 0:00:13]} Rd7 {[%emt 0:00:36]} 18. Nf3 {[%emt 0:16:48]} c5 {[%emt 0:05:47]} 19. b3 {[%emt 0:01:49]} Rhd8 {[%emt 0:00:55]} 20. Bc3 {[%emt 0:02:57]} Bxg3 {[%emt 0:06:25]} 21. fxg3 {[%emt 0:36:24]} cxd4 {[%emt 0:03:59]} 22. Bxd4 {[%emt 0:00:00]} Qxg3 {[%emt 0:02:01]} 23. Kb2 {[%emt 0:00:00]} Qg4 {[%emt 0:03:19]} 24. Bxf6 {[%emt 0:00:00]} Rxd1 {[%emt 0:00:14]} 25. Rxd1 {[%emt 0:00:00]} Rxd1 {[%emt 0:00:08]} 26. Bc3 {[%emt 0:00:00]} Rd7 {[%emt 0:04:28]} 27. Qf2 {[%emt 0:00:00]} Qf4 {[%emt 0:01:45]} 28. Be5 {[%emt 0:00:00]} Qe4 {[%emt 0:01:36]} 29. Qc5+ {[%emt 0:00:00]} Qc6 {[%emt 0:00:10]} 30. Qf8+ {[%emt 0:00:00]} Rd8 {[%emt 0:00:07]} 31. Qxf7 {[%emt 0:00:00]} Nd7 {[%emt 0:00:09]} 32. Bxg7 {[%emt 0:02:44]} Nc5 {[%emt 0:01:08]} 33. Bf6 {[%emt 0:00:54]} Rd7 {[%emt 0:01:34]} 34. Qg8+ {[%emt 0:00:26]} Kc7 {[%emt 0:00:22]} 35. Nd4 {[%emt 0:00:52]} Qe4 {[%emt 0:01:17]} 36. Nb5+ {[%emt 0:00:51]} Kb6 {[%emt 0:04:42]} 37. Bd8+ {[%emt 0:00:01]} Kc6 {[%emt 0:01:20]} 38. Nxa7+ {[%emt 0:00:22]} Kd6 {[%emt 0:00:07]} 39. Qf8+ {[%emt 0:00:22]} Ke5 {[%emt 0:00:33]} 40. Qxc5+ {[%emt 0:00:00]} Kf4 {[%emt 0:00:15]} 41. Qg5# {[%emt 0:00:00]} 1-0

[Event "17th Memorial Lezcano Montalvo 2025"]
[Site "Gran Canaria"]
[Date "2025.04.15"]
[Round "4.35"]
[White "Roquero Redondo, Miguel"]
[Black "Martinez Correa, Rafael"]
[Result "1/2-1/2"]
[Annotator "RC"]
[ECO "B33"]
[WhiteElo "2037"]
[BlackElo "1719"]
[PlyCount "93"]
[EventDate "2025.04.13"]
[EventType "swiss"]
[EventCountry "ESP"]
[SourceTitle "playchess.com"]
[Source "ChessBase"]
[SourceQuality "1"]
[TimeControl "5400+30"]

1. e4 {[%emt 0:00:02]} c5 {[%emt 0:00:08]} 2. Nf3 {[%emt 0:00:09]} Nc6 {[%emt 0:00:08]} 3. Nc3 {[%emt 0:00:12]} Nf6 {[%emt 0:00:20]} 4. d4 {[%emt 0:00:21]} cxd4 {[%emt 1:31:54]} 5. Nxd4 {[%emt 0:00:07]} e5 {[%emt 0:00:30]} 6. Ndb5 {[%emt 0:00:06]} d6 {[%emt 0:00:00]} 7. Nd5 {[%emt 0:00:30]} Nxd5 {[%emt 0:00:00]} 8. exd5 {[%emt 0:00:30]} Ne7 {[%emt 0:00:00]} 9. c4 {[%emt 0:00:30]} Ng6 {[%emt 0:00:00]} 10. Qa4 {[%emt 0:00:26]} Bd7 {[%emt 0:00:00]} 11. Qb4 {[%emt 0:00:08]} Qb8 {[%emt 0:00:00]} 12. h4 {[%emt 0:00:30]} a6 {[%emt 0:00:00]} 13. Nc3 {[%emt 0:00:30]} h5 {[%emt 0:00:00]} 14. Be2 {[%emt 0:00:30]} Be7 {[%emt 0:00:00]} 15. a3 {[%emt 0:00:30]} Qc7 {[%emt 0:00:00]} 16. Be3 {[%emt 0:00:30]} Bg4 {[%emt 0:00:00]} 17. Qa4+ {[%emt 0:00:30]} Qd7 {[%emt 0:00:00]} 18. f3 {[%emt 0:00:30]} Bf5 {[%emt 0:00:00]} 19. Rc1 {[%emt 0:00:30]} Rc8 {[%emt 0:00:00]} 20. Kd2 {[%emt 0:00:30]} Bf6 {[%emt 0:00:00]} 21. g4 {[%emt 0:00:30]} hxg4 {[%emt 0:00:00]} 22. fxg4 {[%emt 0:00:30]} Qxa4 {[%emt 0:00:00]} 23. Nxa4 {[%emt 0:00:30]} Be4 {[%emt 0:00:00]} 24. g5 {[%emt 0:00:30]} Be7 {[%emt 0:00:00]} 25. Rh3 {[%emt 0:00:30]} Rxh4 {[%emt 0:00:00]} 26. Rxh4 {[%emt 0:00:30]} Nxh4 {[%emt 0:00:00]} 27. Rf1 {[%emt 0:00:30]} Nf5 {[%emt 0:00:00]} 28. Rg1 {[%emt 0:00:30]} Nxe3 {[%emt 0:00:00]} 29. Kxe3 {[%emt 0:00:30]} Bf5 {[%emt 0:00:00]} 30. Bd3 {[%emt 0:00:30]} Bxd3 {[%emt 0:00:00]} 31. Kxd3 {[%emt 0:00:30]} b5 {[%emt 0:00:00]} 32. cxb5 {[%emt 0:00:30]} axb5 {[%emt 0:00:00]} 33. Nc3 {[%emt 0:00:30]} Rb8 {[%emt 0:00:00]} 34. Ne4 {[%emt 0:00:30]} Kd7 {[%emt 0:00:00]} 35. Rf1 {[%emt 0:00:30]} Rf8 {[%emt 0:00:00]} 36. Kc3 {[%emt 0:00:30]} f5 {[%emt 0:00:00]} 37. gxf6 {[%emt 0:00:30]} gxf6 {[%emt 0:00:00]} 38. Rf5 {[%emt 0:00:30]} Rc8+ {[%emt 0:00:00]} 39. Kd3 {[%emt 0:00:30]} Rc4 {[%emt 0:00:00]} 40. Nxf6+ {[%emt 0:00:30]} Bxf6 {[%emt 0:00:00]} 41. Rxf6 {[%emt 0:00:30]} Rd4+ {[%emt 0:00:00]} 42. Ke3 {[%emt 0:00:30]} Rxd5 {[%emt 0:00:00]} 43. Rf7+ {[%emt 0:00:30]} Kc6 {[%emt 0:00:00]} 44. Rf8 {[%emt 0:00:30]} Rd1 {[%emt 0:00:00]} 45. Rc8+ {[%emt 0:00:30]} Kb7 {[%emt 0:00:00]} 46. Rc2 {[%emt 0:00:30]} Rd4 {[%emt 0:00:00]} 47. Rh2 {[%emt 0:00:30]} 1/2-1/2

[Event "17th Memorial Lezcano Montalvo 2025"]
[Site "Gran Canaria"]
[Date "2025.04.15"]
[Round "4.36"]
[White "Torres Rebolledo, Marcos"]
[Black "Macias Reyes, Jose Luis"]
[Result "1/2-1/2"]
[Annotator "RC"]
[ECO "D13"]
[WhiteElo "2010"]
[BlackElo "1674"]
[PlyCount "109"]
[EventDate "2025.04.13"]
[EventType "swiss"]
[EventCountry "ESP"]
[SourceTitle "playchess.com"]
[Source "ChessBase"]
[SourceQuality "1"]
[TimeControl "5400+30"]

1. d4 {[%emt 0:00:03]} d5 {[%emt 0:00:06]} 2. c4 {[%emt 0:00:07]} c6 {[%emt 0:00:09]} 3. Nc3 {[%emt 0:00:12]} Nf6 {[%emt 0:00:09]} 4. cxd5 {[%emt 0:00:06]} cxd5 {[%emt 0:00:09]} 5. Bf4 {[%emt 0:00:05]} Nc6 {[%emt 0:00:22]} 6. e3 {[%emt 0:00:09]} a6 {[%emt 0:00:24]} 7. Bd3 {[%emt 0:00:20]} e6 {[%emt 0:01:10]} 8. Nf3 {[%emt 0:02:42]} Bd6 {[%emt 0:02:43]} 9. Ne5 {[%emt 0:02:40]} O-O {[%emt 0:01:37]} 10. O-O {[%emt 0:01:06]} Bxe5 {[%emt 0:05:03]} 11. Bxe5 {[%emt 0:00:31]} Nxe5 {[%emt 0:02:38]} 12. dxe5 {[%emt 0:00:13]} Nd7 {[%emt 0:03:23]} 13. f4 {[%emt 0:03:27]} Qb6 {[%emt 0:02:31]} 14. Qd2 {[%emt 0:12:19]} f5 {[%emt 0:08:47]} 15. Na4 {[%emt 0:08:05]} Qa7 {[%emt 0:05:56]} 16. Rfc1 {[%emt 0:03:54]} b5 {[%emt 0:03:58]} 17. Nc3 {[%emt 0:00:17]} Nb6 {[%emt 0:02:52]} 18. b3 {[%emt 0:06:25]} Bd7 {[%emt 0:01:35]} 19. Ne2 {[%emt 0:00:29]} Rac8 {[%emt 0:05:39]} 20. Nd4 {[%emt 0:01:59]} Na8 {[%emt 0:02:18]} 21. Kf2 {[%emt 0:06:42]} Qb6 {[%emt 0:01:27]} 22. Qe2 {[%emt 0:11:36]} Nc7 {[%emt 0:08:10]} 23. a3 {[%emt 0:01:39]} g6 {[%emt 0:02:48]} 24. Qd2 {[%emt 0:05:49]} Kf7 {[%emt 0:06:46]} 25. Rc2 {[%emt 0:01:06]} Na8 {[%emt 0:02:03]} 26. a4 {[%emt 0:02:10]} b4 {[%emt 0:03:04]} 27. a5 {[%emt 0:00:07]} Qb7 {[%emt 0:00:19]} 28. Qe2 {[%emt 0:03:36]} Rxc2 {[%emt 0:07:51]} 29. Nxc2 {[%emt 0:00:08]} Nc7 {[%emt 0:02:09]} 30. Qe1 {[%emt 0:03:12]} Rb8 {[%emt 0:00:39]} 31. Be2 {[%emt 0:00:45]} Bb5 {[%emt 0:03:06]} 32. Bxb5 {[%emt 0:02:12]} Qxb5 {[%emt 0:00:38]} 33. Qd2 {[%emt 0:00:22]} Qc5 {[%emt 0:02:24]} 34. Nd4 {[%emt 0:01:23]} Nb5 {[%emt 0:01:55]} 35. Nxb5 {[%emt 0:01:35]} Qxb5 {[%emt 0:03:12]} 36. Ra4 {[%emt 0:02:37]} Qc5 {[%emt 0:01:20]} 37. Qd3 {[%emt 0:01:43]} Rb5 {[%emt 0:01:46]} 38. Qd4 {[%emt 0:07:40]} Rxa5 {[%emt 0:04:41]} 39. Rxa5 {[%emt 0:00:20]} Qxa5 {[%emt 0:00:16]} 40. Qa7+ {[%emt 0:00:10]} Ke8 {[%emt 0:00:46]} 41. Qb8+ {[%emt 0:00:53]} Kf7 {[%emt 0:02:26]} 42. Qb7+ {[%emt 0:01:09]} Kg8 {[%emt 0:00:35]} 43. Qe7 {[%emt 0:01:01]} Qa1 {[%emt 0:00:29]} 44. Qxe6+ {[%emt 0:00:45]} Kg7 {[%emt 0:00:47]} 45. Qxd5 {[%emt 0:00:49]} Qb2+ {[%emt 0:00:15]} 46. Kf3 {[%emt 0:00:50]} Qc1 {[%emt 0:00:36]} 47. Qd4 {[%emt 0:01:44]} Qf1+ {[%emt 0:00:21]} 48. Kg3 {[%emt 0:00:02]} Qe1+ {[%emt 0:00:12]} 49. Kh3 {[%emt 0:00:18]} Qe2 {[%emt 0:00:18]} 50. Kg3 {[%emt 0:03:36]} Qe1+ {[%emt 0:00:02]} 51. Kh3 {[%emt 0:00:11]} Qe2 {[%emt 0:00:08]} 52. e6+ {[%emt 0:01:04]} Kh6 {[%emt 0:00:10]} 53. Kg3 {[%emt 0:01:44]} Qe1+ {[%emt 0:00:02]} 54. Kh3 {[%emt 0:00:13]} Qe2 {[%emt 0:00:04]} 55. Kg3 {[%emt 0:00:05]} 1/2-1/2

[Event "17th Memorial Lezcano Montalvo 2025"]
[Site "Gran Canaria"]
[Date "2025.04.15"]
[Round "4.37"]
[White "Morell Rojas, Samuel"]
[Black "Castro Miguelez, Jose"]
[Result "1/2-1/2"]
[Annotator "NA RC"]
[ECO "B22"]
[WhiteElo "1652"]
[BlackElo "1846"]
[PlyCount "29"]
[EventDate "2025.04.13"]
[EventType "swiss"]
[EventCountry "ESP"]
[SourceTitle "playchess.com"]
[Source "ChessBase"]
[SourceQuality "1"]
[TimeControl "5400+30"]

1. e4 {[%emt 0:00:00]} c5 {[%emt 0:00:05]} 2. c3 {[%emt 0:00:05]} Nf6 {[%emt 0:00:03]} 3. e5 {[%emt 0:00:05]} Nd5 {[%emt 0:00:03]} 4. d4 {[%emt 0:00:07]} cxd4 {[%emt 0:00:04]} 5. cxd4 {[%emt 0:00:08]} d6 {[%emt 0:00:06]} 6. Nf3 {[%emt 0:00:37]} Nc6 {[%emt 0:00:05]} 7. Bc4 {[%emt 0:00:32]} dxe5 {[%emt 0:00:05]} 8. dxe5 {[%emt 0:00:11]} Be6 {[%emt 0:00:12]} 9. O-O {[%emt 0:00:54]} Nc7 {[%emt 0:00:03]} 10. Bxe6 {[%emt 0:00:10]} Nxe6 {[%emt 0:00:06]} 11. Qe2 {[%emt 0:00:15]} g6 {[%emt 0:00:30]} 12. Rd1 {[%emt 0:00:46]} Qb8 {[%emt 0:00:12]} 13. Nc3 {[%emt 0:00:14]} Bg7 {[%emt 0:00:05]} 14. Nd5 {[%emt 0:04:21]} O-O {[%emt 0:01:35]} 15. Qe4 {[%emt 0:06:02]} 1/2-1/2

[Event "17th Memorial Lezcano Montalvo 2025"]
[Site "Gran Canaria"]
[Date "2025.04.15"]
[Round "4.38"]
[White "De La Cruz Perez, Carlos"]
[Black "Alonso Galvez, Ana Belen"]
[Result "1-0"]
[Annotator "NA RC"]
[ECO "E01"]
[WhiteElo "1835"]
[BlackElo "1554"]
[PlyCount "87"]
[EventDate "2025.04.13"]
[EventType "swiss"]
[EventCountry "ESP"]
[SourceTitle "playchess.com"]
[Source "ChessBase"]
[SourceQuality "1"]
[TimeControl "5400+30"]

1. Nf3 {[%emt 0:00:04]} d5 {[%emt 0:00:11]} 2. d4 {[%emt 0:00:20]} e6 {[%emt 0:00:07]} 3. c4 {[%emt 0:00:13]} Nf6 {[%emt 0:00:19]} 4. g3 {[%emt 0:00:10]} c6 {[%emt 0:00:43]} 5. Bg2 {[%emt 0:01:15]} Bb4+ {[%emt 0:01:01]} 6. Bd2 {[%emt 0:00:31]} Qa5 {[%emt 0:01:03]} 7. O-O {[%emt 0:01:23]} Ne4 {[%emt 0:00:38]} 8. Qc2 {[%emt 0:19:45]} Nxd2 {[%emt 0:02:11]} 9. Nbxd2 {[%emt 0:00:05]} Nd7 {[%emt 0:00:52]} 10. e4 {[%emt 0:02:17]} O-O {[%emt 0:02:09]} 11. a3 {[%emt 0:06:22]} Be7 {[%emt 0:04:38]} 12. Rfe1 {[%emt 0:00:42]} b5 {[%emt 0:02:08]} 13. cxd5 {[%emt 0:01:29]} cxd5 {[%emt 0:00:53]} 14. exd5 {[%emt 0:00:11]} Nf6 {[%emt 0:01:01]} 15. dxe6 {[%emt 0:00:36]} Bxe6 {[%emt 0:00:28]} 16. Ng5 {[%emt 0:01:29]} Rac8 {[%emt 0:02:22]} 17. Qd1 {[%emt 0:00:57]} Qb6 {[%emt 0:05:53]} 18. Nxe6 {[%emt 0:01:23]} fxe6 {[%emt 0:00:20]} 19. Qb3 {[%emt 0:06:18]} Qxd4 {[%emt 0:02:30]} 20. Qxe6+ {[%emt 0:00:16]} Kh8 {[%emt 0:00:13]} 21. Nf3 {[%emt 0:00:30]} Qxb2 {[%emt 0:03:05]} 22. Qxe7 {[%emt 0:01:45]} Rfe8 {[%emt 0:02:01]} 23. Qb4 {[%emt 0:01:32]} Rxe1+ {[%emt 0:01:03]} 24. Rxe1 {[%emt 0:00:12]} Qa2 {[%emt 0:01:33]} 25. h3 {[%emt 0:01:59]} a6 {[%emt 0:00:16]} 26. Qe7 {[%emt 0:01:31]} h6 {[%emt 0:01:14]} 27. Qe6 {[%emt 0:03:04]} Qxe6 {[%emt 0:01:03]} 28. Rxe6 {[%emt 0:00:04]} a5 {[%emt 0:00:24]} 29. Ra6 {[%emt 0:00:40]} a4 {[%emt 0:00:38]} 30. Rb6 {[%emt 0:00:08]} Rc3 {[%emt 0:00:45]} 31. Rxb5 {[%emt 0:00:25]} Rxa3 {[%emt 0:00:06]} 32. Ra5 {[%emt 0:00:21]} Ra1+ {[%emt 0:00:36]} 33. Bf1 {[%emt 0:00:11]} Ne4 {[%emt 0:00:25]} 34. Kg2 {[%emt 0:01:32]} Ra2 {[%emt 0:01:46]} 35. Ra8+ {[%emt 0:00:07]} Kh7 {[%emt 0:00:06]} 36. Bd3 {[%emt 0:00:08]} Rxf2+ {[%emt 0:00:31]} 37. Kg1 {[%emt 0:00:04]} Ra2 {[%emt 0:01:44]} 38. Bxe4+ {[%emt 0:00:07]} g6 {[%emt 0:00:10]} 39. Ra7+ {[%emt 0:00:05]} Kh8 {[%emt 0:00:22]} 40. Bxg6 {[%emt 0:00:30]} a3 {[%emt 0:00:14]} 41. Nh4 {[%emt 0:00:36]} Ra1+ {[%emt 0:00:23]} 42. Kg2 {[%emt 0:00:06]} Kg8 {[%emt 0:00:20]} 43. Nf5 {[%emt 0:00:09]} Ra2+ {[%emt 0:00:52]} 44. Kf3 {[%emt 0:00:05]} 1-0

[Event "17th Memorial Lezcano Montalvo 2025"]
[Site "Gran Canaria"]
[Date "2025.04.15"]
[Round "4.39"]
[White "Trocoli Romero, Luis Dingyu"]
[Black "Schmitz, Manuela"]
[Result "1/2-1/2"]
[Annotator "NA RC"]
[ECO "E18"]
[WhiteElo "1599"]
[BlackElo "1815"]
[PlyCount "77"]
[EventDate "2025.04.13"]
[EventType "swiss"]
[EventCountry "ESP"]
[SourceTitle "playchess.com"]
[Source "ChessBase"]
[SourceQuality "1"]
[TimeControl "5400+30"]

1. d4 {[%emt 0:00:03]} d5 {[%emt 0:00:07]} 2. Nf3 {[%emt 0:00:08]} Nf6 {[%emt 0:00:06]} 3. c4 {[%emt 0:00:05]} e6 {[%emt 0:00:08]} 4. g3 {[%emt 0:00:05]} Be7 {[%emt 0:00:19]} 5. Bg2 {[%emt 0:00:15]} O-O {[%emt 0:00:22]} 6. O-O {[%emt 0:00:08]} b6 {[%emt 0:00:14]} 7. Qc2 {[%emt 0:03:05]} Bb7 {[%emt 0:00:39]} 8. Nc3 {[%emt 0:06:29]} c5 {[%emt 0:03:31]} 9. Be3 {[%emt 0:04:09]} Nbd7 {[%emt 0:06:45]} 10. Rfd1 {[%emt 0:08:03]} Qc8 {[%emt 0:03:50]} 11. cxd5 {[%emt 0:21:23]} Nxd5 {[%emt 0:08:02]} 12. Ng5 {[%emt 0:11:28]} Bxg5 {[%emt 0:03:11]} 13. Bxg5 {[%emt 0:00:14]} Nxc3 {[%emt 0:01:01]} 14. Qxc3 {[%emt 0:00:54]} Bxg2 {[%emt 0:00:39]} 15. Kxg2 {[%emt 0:00:09]} Qb7+ {[%emt 0:01:37]} 16. f3 {[%emt 0:00:23]} h6 {[%emt 0:02:26]} 17. Bf4 {[%emt 0:01:08]} Rfd8 {[%emt 0:05:05]} 18. Rd2 {[%emt 0:04:19]} g5 {[%emt 0:01:54]} 19. Be3 {[%emt 0:06:38]} Nf6 {[%emt 0:01:23]} 20. Bf2 {[%emt 0:07:30]} cxd4 {[%emt 0:02:04]} 21. Rxd4 {[%emt 0:00:58]} Nd5 {[%emt 0:01:00]} 22. Qd2 {[%emt 0:03:05]} Rd7 {[%emt 0:00:36]} 23. e4 {[%emt 0:01:44]} Nf6 {[%emt 0:00:09]} 24. Rxd7 {[%emt 0:00:36]} Qxd7 {[%emt 0:00:08]} 25. Qc3 {[%emt 0:00:49]} Qe7 {[%emt 0:01:15]} 26. Bd4 {[%emt 0:04:24]} Kg7 {[%emt 0:03:43]} 27. Rd1 {[%emt 0:01:36]} Re8 {[%emt 0:00:50]} 28. f4 {[%emt 0:01:28]} Kg6 {[%emt 0:03:02]} 29. Qf3 {[%emt 0:04:26]} Rc8 {[%emt 0:01:31]} 30. f5+ {[%emt 0:01:56]} Kg7 {[%emt 0:00:18]} 31. fxe6 {[%emt 0:00:22]} fxe6 {[%emt 0:01:41]} 32. Rf1 {[%emt 0:01:58]} Rf8 {[%emt 0:02:30]} 33. Be5 {[%emt 0:01:44]} Kg6 {[%emt 0:00:34]} 34. Qd3 {[%emt 0:00:45]} Rf7 {[%emt 0:04:52]} 35. Bd6 {[%emt 0:00:47]} Qb7 {[%emt 0:00:09]} 36. Kg1 {[%emt 0:01:21]} Kg7 {[%emt 0:02:25]} 37. Be5 {[%emt 0:00:52]} Kg6 {[%emt 0:00:43]} 38. Bd6 {[%emt 0:00:22]} Kg7 {[%emt 0:00:08]} 39. Be5 {[%emt 0:00:06]} 1/2-1/2

[Event "17th Memorial Lezcano Montalvo 2025"]
[Site "Gran Canaria"]
[Date "2025.04.15"]
[Round "4.41"]
[White "Barlov, Dragan"]
[Black "Valido Ramos, Adrian"]
[Result "1-0"]
[Annotator "RC"]
[ECO "B13"]
[WhiteElo "2351"]
[BlackElo "1667"]
[PlyCount "22"]
[EventDate "2025.04.13"]
[EventType "swiss"]
[EventCountry "ESP"]
[SourceTitle "playchess.com"]
[Source "ChessBase"]
[SourceQuality "1"]
[TimeControl "5400+30"]

1. e4 {[%emt 0:02:30]} c6 {[%emt 0:00:35]} 2. d4 {[%emt 0:00:22]} d5 {[%emt 0:00:00]} 3. exd5 {[%emt 0:00:15]} cxd5 {[%emt 0:00:00]} 4. c4 {[%emt 0:00:05]} Nf6 {[%emt 0:00:36]} 5. Nc3 {[%emt 0:00:05]} Nbd7 {[%emt 0:05:25]} 6. Nf3 {[%emt 0:04:08]} Nb6 {[%emt 0:02:22]} 7. c5 {[%emt 0:02:22]} Nbd7 {[%emt 0:01:17]} 8. Bf4 {[%emt 0:02:24]} g6 {[%emt 0:02:04]} 9. Nb5 {[%emt 0:03:17]} e5 {[%emt 0:09:32]} 10. Nxe5 {[%emt 0:11:01]} Qa5+ {[%emt 0:02:52]} 11. b4 {[%emt 0:14:18]} Qd8 {[%emt 0:03:25]} 1-0

[Event "17th Memorial Lezcano Montalvo 2025"]
[Site "Gran Canaria"]
[Date "2025.04.15"]
[Round "4.42"]
[White "Marrero Rodriguez, Jorge"]
[Black "Cabrera Martel, Isaac"]
[Result "0-1"]
[Annotator "RC"]
[ECO "A52"]
[WhiteElo "2251"]
[BlackElo "1655"]
[PlyCount "74"]
[EventDate "2025.04.13"]
[EventType "swiss"]
[EventCountry "ESP"]
[SourceTitle "playchess.com"]
[Source "ChessBase"]
[SourceQuality "1"]
[TimeControl "5400+30"]

1. d4 {[%emt 0:00:14]} Nf6 {[%emt 0:00:06]} 2. c4 {[%emt 0:00:13]} e5 {[%emt 0:00:07]} 3. dxe5 {[%emt 0:00:21]} Ng4 {[%emt 0:00:03]} 4. e4 {[%emt 0:01:39]} Nxe5 {[%emt 0:00:40]} 5. f4 {[%emt 0:00:07]} Nec6 {[%emt 0:04:12]} 6. Nc3 {[%emt 0:03:10]} Bc5 {[%emt 0:01:57]} 7. Nf3 {[%emt 0:00:20]} d6 {[%emt 0:05:46]} 8. Na4 {[%emt 0:00:36]} Bb4+ {[%emt 0:00:28]} 9. Kf2 {[%emt 0:00:29]} Bg4 {[%emt 0:04:18]} 10. a3 {[%emt 0:02:08]} Ba5 {[%emt 0:00:37]} 11. b4 {[%emt 0:00:36]} Bb6+ {[%emt 0:00:03]} 12. Nxb6 {[%emt 0:00:11]} axb6 {[%emt 0:00:06]} 13. Bb2 {[%emt 0:00:08]} O-O {[%emt 0:02:46]} 14. Bd3 {[%emt 0:02:29]} Re8 {[%emt 0:02:26]} 15. h3 {[%emt 0:00:21]} Bxf3 {[%emt 0:11:15]} 16. Qxf3 {[%emt 0:00:11]} Nd7 {[%emt 0:01:48]} 17. h4 {[%emt 0:01:19]} Nf6 {[%emt 0:12:34]} 18. g4 {[%emt 0:00:50]} Qe7 {[%emt 0:06:50]} 19. Rae1 {[%emt 0:00:11]} Nd7 {[%emt 0:05:01]} 20. g5 {[%emt 0:01:37]} f6 {[%emt 0:01:59]} 21. Reg1 {[%emt 0:00:47]} Rf8 {[%emt 0:02:51]} 22. Rg2 {[%emt 0:03:21]} Nce5 {[%emt 0:02:18]} 23. Qe3 {[%emt 0:07:07]} fxg5 {[%emt 0:00:38]} 24. Rxg5 {[%emt 0:03:44]} Rxf4+ {[%emt 0:00:20]} 25. Ke2 {[%emt 0:00:14]} Raf8 {[%emt 0:03:31]} 26. Bc2 {[%emt 0:05:34]} Qf7 {[%emt 0:05:28]} 27. Rg2 {[%emt 0:03:45]} Rf1 {[%emt 0:07:17]} 28. Rhg1 {[%emt 0:17:32]} Qh5+ {[%emt 0:05:59]} 29. Kd2 {[%emt 0:00:14]} Nxc4+ {[%emt 0:00:43]} 30. Kd3 {[%emt 0:00:10]} Nxb2+ {[%emt 0:00:47]} 31. Kc3 {[%emt 0:00:10]} Qe5+ {[%emt 0:02:12]} 32. Kb3 {[%emt 0:00:16]} R1f3 {[%emt 0:00:16]} 33. Rg3 {[%emt 0:00:04]} Rxe3+ {[%emt 0:00:50]} 34. Rxe3 {[%emt 0:00:04]} b5 {[%emt 0:01:25]} 35. Rc3 {[%emt 0:00:57]} Nc4 {[%emt 0:00:59]} 36. a4 {[%emt 0:00:04]} Rf3 {[%emt 0:01:34]} 37. Bd3 {[%emt 0:00:53]} Rxd3 {[%emt 0:01:00]} 0-1